lending/lending_fUSD_20250114
["ID","MTS","AMOUNT","RATE_DAILY","PERIOD"]
[348958105,1736892640441,-500.0,0.00011913,2]
[348958106,1736892640451,-306.72215404,0.00011913,2]
[348958107,1736892640463,-500.0,0.00011913,2]
[348958108,1736892640475,-515.27,0.00011913,2]
[348958109,1736892640486,-500.0,0.00011913,2]
[348958110,1736892640498,-541.85,0.00011913,2]
[348958111,1736892640510,-500.0,0.00011913,2]
[348958112,1736892640522,-571.93,0.00011913,2]
[348958113,1736892640533,-500.0,0.00011913,2]
[348958114,1736892640546,-930.17,0.00011913,2]
[348958115,1736892640558,-500.0,0.00011913,2]
[348958116,1736892640571,-1251.48,0.00011913,2]
[348958117,1736892640582,-1121.69,0.00011913,2]
[348958118,1736892640594,-1538.03,0.00011914,2]
[348958119,1736892640604,-889.07,0.00011914,2]
[348958120,1736892640617,-2267.64,0.00011914,2]
[348958121,1736892640629,-2819.62,0.00011914,2]
[348958122,1736892640641,-1179.45,0.00011914,2]
[348958123,1736892640652,-2103.57,0.00011914,2]
[348958124,1736892640664,-733.95,0.00011914,2]
[348958125,1736892640675,-525.94,0.00011914,2]
[348958126,1736892640687,-827.69,0.00011914,2]
[348958127,1736892640699,-500.0,0.00011914,2]
[348958128,1736892640711,-603.53,0.00011914,2]
[348958129,1736892640723,-708.63,0.00011914,2]
[348958130,1736892640733,-1022.41,0.00011914,2]
[348958131,1736892640744,-582.62,0.00011914,2]
[348958132,1736892640759,-1631.11,0.00011914,2]
[348958133,1736892640770,-718.04,0.00011914,2]
[348958134,1736892640783,-429.93842545,0.00011915,2]
[348958135,1736892640799,-1057.0,0.00012,2]
[348958136,1736892640810,-1043.9122575,0.00012016,2]
[348958137,1736892640822,-166.73794239,0.00012016,2]
[348958138,1736892640835,-980.31,0.00012036,2]
[348958139,1736892640847,-1617.89694312,0.00012038,2]
[348958140,1736892640859,-214.415982,0.00012053,4]
[348958141,1736892640870,-200.0,0.00012055,2]
[348958142,1736892640884,-36718.78,0.00012055,2]
[348958143,1736892640896,-3424.16192075,0.00012073,4]
[348958144,1736892640907,-161.85630626,0.00012073,2]
[348958145,1736892640920,-200.0,0.0001211,2]
[348958146,1736892640931,-151.34616858,0.00012115,2]
[348958147,1736892640942,-666.0,0.00012115,2]
[348958148,1736892640952,-666.0,0.00012115,2]
[348958149,1736892640963,-666.0,0.00012115,2]
[348958150,1736892640975,-500.0,0.00012115,2]
[348958151,1736892640988,-1549273.6697927,0.00012115,4]
[348958152,1736892641000,-345842.31035036,0.00012116,2]
[348958153,1736892641328,-426.20493002,0.00011639,2]
[348958154,1736892641854,-73.79506998,0.00011639,2]
[348958155,1736892641864,-307.82205477,0.00011913,2]
[348958156,1736892641887,-192.17794523,0.00011913,2]
[348958157,1736892641896,-711.8,0.00011913,2]
[348958158,1736892641906,-170658.74765431,0.00012116,2]
[348958159,1736892641915,-77977.76072581,0.00012116,2]
[348958160,1736892641925,-2000.0,0.00012116,2]
[348958161,1736892641934,-200.0,0.00012116,2]
[348958162,1736892641943,-3000.0,0.00012116,2]
[348958163,1736892641952,-10004.75697944,0.00012116,2]
[348958164,1736892641962,-151.88849702,0.00012173,2]
[348958165,1736892641971,-500.0,0.00012173,2]
[348958166,1736892641981,-83439.12215503,0.0001218,2]
[348958167,1736892641993,-50957.05557369,0.0001218,2]
[348958168,1736892642002,-500.0,0.0001218,2]
[348958169,1736892642011,-500.0,0.0001218,2]
[348958170,1736892642021,-500.0,0.0001218,2]
[348958171,1736892642030,-506.0,0.0001218,2]
[348958172,1736892642040,-1206.68,0.00012185,2]
[348958173,1736892642049,-584.28,0.00012185,2]
[348958174,1736892642059,-1317.09,0.00012185,2]
[348958175,1736892642068,-1171.05,0.00012185,2]
[348958176,1736892642078,-516.93,0.00012185,2]
[348958177,1736892642087,-3756.96,0.00012185,2]
[348958178,1736892642097,-877.95,0.00012185,2]
[348958179,1736892642106,-587.22,0.00012185,2]
[348958180,1736892642116,-500.0,0.00012185,2]
[348958181,1736892642125,-500.0,0.00012185,2]
[348958182,1736892642135,-1507.13,0.00012185,2]
[348958183,1736892642144,-630.16,0.00012185,2]
[348958184,1736892642153,-500.0,0.00012185,2]
[348958185,1736892642163,-500.0,0.00012185,2]
[348958186,1736892642173,-1026.43,0.00012185,2]
[348958187,1736892642182,-599.86,0.00012185,2]
[348958188,1736892642192,-797.6,0.00012185,2]
[348958189,1736892642203,-951.18,0.00012185,2]
[348958190,1736892642212,-2252.65,0.00012185,2]
[348958191,1736892642221,-500.0,0.00012185,2]
[348958192,1736892642230,-500.0,0.00012185,2]
[348958193,1736892642239,-500.0,0.00012185,2]
[348958194,1736892642249,-500.0,0.00012185,2]
[348958195,1736892642259,-558.92,0.00012185,2]
[348958196,1736892642269,-663.43,0.00012185,2]
[348958197,1736892642278,-1861.33,0.00012185,2]
[348958198,1736892642288,-509.09672196,0.00012186,2]
[348958199,1736892642298,-514.75,0.00012186,2]
[348958200,1736892642698,-500.0,0.00012186,2]
[348958201,1736892642715,-500.0,0.00012186,2]
[348958202,1736892642726,-500.0,0.00012186,2]
[348958203,1736892642736,-500.0,0.00012186,2]
[348958204,1736892642745,-500.0,0.00012186,2]
[348958205,1736892642759,-500.0,0.00012186,2]
[348958206,1736892642768,-500.0,0.00012186,2]
[348958207,1736892642778,-500.0,0.00012186,2]
[348958208,1736892642787,-500.0,0.00012186,2]
[348958209,1736892642797,-500.0,0.00012186,2]
[348958210,1736892642806,-500.0,0.00012186,2]
[348958211,1736892642816,-500.0,0.00012186,2]
[348958212,1736892642828,-500.0,0.00012186,2]
[348958213,1736892642839,-557.04,0.00012186,2]
[348958214,1736892642849,-500.0,0.00012186,2]
[348958215,1736892642859,-500.0,0.00012186,2]
[348958216,1736892642868,-500.0,0.00012186,2]
[348958217,1736892642878,-500.0,0.00012186,2]
[348958218,1736892642888,-608.65589678,0.00012186,2]
[348958219,1736892642898,-500.0,0.00012186,2]
[348958220,1736892642907,-500.0,0.00012186,2]
[348958221,1736892642918,-500.0,0.00012186,2]
[348958222,1736892642927,-500.0,0.00012186,2]
[348958223,1736892642938,-500.0,0.00012186,2]
[348958224,1736892642949,-500.0,0.00012186,2]
[348958225,1736892642959,-500.0,0.00012186,2]
[348958226,1736892642968,-1014.87,0.00012186,2]
[348958227,1736892642977,-500.0,0.00012186,2]
[348958228,1736892642988,-817.82,0.00012186,2]
[348958229,1736892642997,-613.99,0.00012186,2]
[348958230,1736892643007,-500.0,0.00012186,2]
[348958231,1736892643017,-372.6758139,0.00012186,2]
[348958232,1736892643026,-500.0,0.00012186,2]
[348958233,1736892643036,-500.0,0.00012186,2]
[348958234,1736892643046,-500.0,0.00012186,2]
[348958235,1736892643056,-527.55,0.00012186,2]
[348958236,1736892643067,-2203.03,0.00012186,2]
[348958237,1736892643077,-500.0,0.00012186,2]
[348958238,1736892643088,-500.0,0.00012187,2]
[348958239,1736892643097,-500.0,0.00012187,2]
[348958240,1736892643107,-500.0,0.00012187,2]
[348958241,1736892643116,-500.0,0.00012187,2]
[348958242,1736892643126,-500.0,0.00012187,2]
[348958243,1736892643136,-767.66,0.00012187,2]
[348958244,1736892643146,-500.0,0.00012187,2]
[348958245,1736892643155,-500.0,0.00012187,2]
[348958246,1736892643165,-1265.26,0.00012187,2]
[348958247,1736892643174,-500.0,0.00012187,2]
[348958248,1736892643184,-381.20584878,0.00012187,2]
[348958249,1736892643194,-730.87,0.00012187,2]
[348958250,1736892643204,-500.0,0.00012187,2]
[348958251,1736892643214,-500.0,0.00012187,2]
[348958252,1736892643224,-500.0,0.00012187,2]
[348958253,1736892643234,-563.29,0.00012187,2]
[348958254,1736892643243,-571.15,0.00012187,2]
[348958255,1736892643252,-575.988066,0.00012187,2]
[348958256,1736892643263,-500.0,0.00012187,2]
[348958257,1736892643272,-524.65,0.00012187,2]
[348958258,1736892643282,-596.471369,0.00012187,2]
[348958259,1736892643291,-500.0,0.00012187,2]
[348958260,1736892643302,-623.86,0.00012187,2]
[348958261,1736892643311,-500.0,0.00012187,2]
[348958262,1736892643320,-500.0,0.00012187,2]
[348958263,1736892643330,-500.0,0.00012187,2]
[348958265,1736892643342,-500.0,0.00012187,2]
[348958266,1736892643351,-500.0,0.00012187,2]
[348958268,1736892643360,-500.0,0.00012187,2]
[348958269,1736892643370,-1527.16,0.00012187,2]
[348958270,1736892643379,-2406.66,0.00012187,2]
[348958271,1736892643391,-500.0,0.00012187,2]
[348958272,1736892643402,-1751.92,0.00012187,2]
[348958273,1736892643413,-500.0,0.00012187,2]
[348958274,1736892643423,-500.0,0.00012187,2]
[348958275,1736892643433,-500.0,0.00012187,2]
[348958276,1736892643442,-515.27,0.00012187,2]
[348958277,1736892643452,-500.0,0.00012187,2]
[348958278,1736892643461,-541.85,0.00012187,2]
[348958279,1736892643471,-500.0,0.00012187,2]
[348958280,1736892643481,-603.53,0.00012187,2]
[348958281,1736892643491,-571.93,0.00012187,2]
[348958282,1736892643500,-500.0,0.00012187,2]
[348958283,1736892643510,-930.17,0.00012187,2]
[348958284,1736892643520,-500.0,0.00012187,2]
[348958285,1736892643530,-1121.69,0.00012187,2]
[348958286,1736892643539,-1251.48,0.00012187,2]
[348958287,1736892643549,-500.0,0.00012187,2]
[348958288,1736892643558,-711.8,0.00012187,2]
[348958289,1736892643569,-1538.03,0.00012188,2]
[348958290,1736892643579,-889.07,0.00012188,2]
[348958291,1736892643589,-2267.64,0.00012188,2]
[348958292,1736892643598,-2819.62,0.00012188,2]
[348958293,1736892643607,-1179.45,0.00012188,2]
[348958294,1736892643617,-2103.57,0.00012188,2]
[348958295,1736892643626,-733.95,0.00012188,2]
[348958296,1736892643636,-525.94,0.00012188,2]
[348958297,1736892643646,-500.0,0.00012188,2]
[348958298,1736892643655,-708.63,0.00012188,2]
[348958299,1736892643665,-1022.41,0.00012188,2]
[348958300,1736892643675,-582.62,0.00012188,2]
[348958301,1736892643684,-1631.11,0.00012188,2]
[348958302,1736892643694,-718.04,0.00012188,2]
[348958303,1736892643704,-14596.939874,0.000122,2]
[348958304,1736892643714,-259.69353795,0.000122,2]
[348958305,1736892643725,-150.0,0.00012223,2]
[348958306,1736892643735,-2000.0,0.00012237,2]
[348958307,1736892643744,-200.0,0.00012237,2]
[348958308,1736892643755,-500.0,0.00012239,2]
[348958309,1736892643765,-500.0,0.00012239,2]
[348958310,1736892643775,-500.0,0.00012239,2]
[348958311,1736892643785,-500.0,0.00012239,2]
[348958312,1736892643796,-500.0,0.00012239,2]
[348958313,1736892643805,-446.0632,0.00012239,2]
[348958314,1736892643815,-554.1521,0.00012239,2]
[348958315,1736892643824,-500.0,0.00012252,2]
[348958316,1736892643834,-370.35,0.00012272,2]
[348958317,1736892643844,-3109.51,0.00012291,2]
[348958318,1736892643853,-749.86,0.00012291,2]
[348958319,1736892643863,-1113.34,0.00012291,2]
[348958320,1736892643873,-622.32,0.00012291,2]
[348958321,1736892643882,-500.0,0.00012291,2]
[348958322,1736892643892,-1139.17,0.00012291,2]
[348958323,1736892643901,-500.0,0.00012291,2]
[348958324,1736892643911,-500.0,0.00012291,2]
[348958325,1736892643920,-500.0,0.00012291,2]
[348958326,1736892643931,-500.0,0.00012291,2]
[348958327,1736892643941,-500.0,0.00012291,2]
[348958328,1736892643950,-500.0,0.00012291,2]
[348958329,1736892643960,-500.0,0.00012291,2]
[348958330,1736892643970,-500.0,0.00012291,2]
[348958331,1736892643979,-599.38,0.00012291,2]
[348958332,1736892643988,-762.16,0.00012291,2]
[348958333,1736892643997,-689.28,0.00012291,2]
[348958334,1736892644007,-1540.29,0.00012291,2]
[348958335,1736892644016,-2937.76,0.00012291,2]
[348958336,1736892644026,-643.63,0.00012291,2]
[348958337,1736892644036,-500.0,0.00012291,2]
[348958338,1736892644047,-519.45,0.00012291,2]
[348958339,1736892644057,-1000.0,0.00012291,2]
[348958340,1736892644066,-2072.7792896,0.00012292,2]
[348958341,1736892644076,-170.8743913,0.00012292,2]
[348958342,1736892644086,-601.3562436,0.00012292,2]
[348958343,1736892644095,-6063.3262986,0.00012292,2]
[348958344,1736892644105,-267.8058927,0.00012292,2]
[348958345,1736892644116,-150.0,0.00012298,2]
[348958346,1736892644126,-1000.0,0.00012299,2]
[348958347,1736892644135,-999.0,0.00012299,2]
[348958348,1736892644145,-603.53,0.00012299,2]
[348958349,1736892644155,-603.53,0.00012299,2]
[348958350,1736892644164,-603.53,0.00012299,2]
[348958351,1736892644174,-603.53,0.00012299,2]
[348958352,1736892644184,-603.53,0.00012299,2]
[348958353,1736892644194,-603.53,0.00012299,2]
[348958354,1736892644204,-603.53,0.00012299,2]
[348958355,1736892644213,-603.53,0.00012299,2]
[348958356,1736892644223,-603.53,0.00012299,2]
[348958357,1736892644232,-603.53,0.00012299,2]
[348958358,1736892644242,-603.53,0.00012299,2]
[348958359,1736892644251,-603.53,0.00012299,2]
[348958360,1736892644261,-603.53,0.00012299,2]
[348958361,1736892644271,-627730.06632103,0.000123,2]
[348958362,1736892644285,-416.3300127,0.000123,2]
[348958363,1736892644307,-723.25852889,0.000123,2]
[348958364,1736892644328,-7363.4,0.000123,2]
[348958365,1736892644339,-10225.0,0.000123,2]
[348958366,1736892644522,-484.49675094,0.000123,2]
[348958367,1736892644728,-675.648,0.00011363,2]
[348958368,1736892644739,-331.612,0.00011363,2]
[348958369,1736892644748,-172.04835509,0.000122,2]
[348958370,1736892644760,-1231.33964491,0.000123,2]
[348958371,1736892644771,-33578.80000399,0.000123,2]
[348958372,1736892646340,-500.0,0.00011089,2]
[348958373,1736892646350,-155.5723265,0.00011363,2]
[348958374,1736892646424,-344.4276735,0.00011363,2]
[348958375,1736892646433,-197.06280231,0.00011539,2]
[348958376,1736892646444,-500.0,0.00011637,2]
[348958377,1736892646453,-224.76128711,0.00012291,2]
[348958378,1736892646465,-275.23871289,0.00012291,2]
[348958379,1736892646476,-5280.52078694,0.000123,2]
[348958380,1736892646488,-3298.12190352,0.000123,2]
[348958381,1736892646500,-7392.2275,0.000123,2]
[348958382,1736892646513,-6300.0,0.000123,2]
[348958383,1736892646537,-7107.57923962,0.000123,2]
[348958384,1736892646549,-44098.50000238,0.000123,2]
[348958385,1736892646562,-31896.95801793,0.000123,2]
[348958386,1736892646574,-67470.47069798,0.000123,2]
[348958387,1736892646588,-2042.65538004,0.000123,2]
[348958388,1736892646600,-363.0,0.000123,2]
[348958389,1736892646622,-500.0,0.00011911,2]
[348958390,1736892646632,-1507.58642047,0.000123,2]
[348958968,1736893831889,-297.99,8.547e-05,2]
[348959025,1736893837380,-0.09,8.547e-05,2]
[348959027,1736893837390,-500.0,9.973e-05,2]
[348959028,1736893837400,-150.87928755,9.973e-05,2]
[348959029,1736893837409,-160.87129337,9.973e-05,2]
[348959030,1736893837418,-136.68941908,9.999e-05,2]
[348959031,1736893837718,-13.31058092,9.999e-05,2]
[348959032,1736893837728,-500.0,9.999e-05,2]
[348959033,1736893837737,-626.53,9.999e-05,2]
[348959034,1736893837746,-618.49935305,9.999e-05,2]
[348959035,1736893837756,-217.17069528,9.999e-05,2]
[348959036,1736893837766,-202.29395412,9.999e-05,2]
[348959037,1736893837775,-642.17214006,9.999e-05,2]
[348959038,1736893837784,-3713660.58535172,0.0001,2]
[348959039,1736893837793,-506016.39501733,0.0001,2]
[348959041,1736893837805,-96834.47637983,0.0001,2]
[348959112,1736893839651,-1133.68384296,0.0001,2]
[348959113,1736893839861,-1465.72069633,0.0001,2]
[348959114,1736893839873,-285.5925,0.0001,2]
[348959133,1736893842626,-500.0,9.999e-05,2]
[348959134,1736893842637,-10789.32007304,0.0001,2]
[348959135,1736893842649,-360.20251,0.0001,2]
[348959136,1736893842704,-27475.000004,0.0001,2]
[348959137,1736893842716,-1947.848,0.0001,2]
[348959138,1736893842727,-532.76290274,0.0001,2]
[348959200,1736893846213,-402.17391744,0.0001,2]
[348959203,1736893846230,-162371.4829597,0.0001,2]
[348959206,1736893846255,-11344.59220339,0.0001,2]
[348959210,1736893846278,-413242.71883669,0.0001,2]
[348959212,1736893846289,-166.73794239,0.0001,2]
[348959214,1736893846301,-923.07802388,0.0001,2]
[348959217,1736893846313,-172.04835509,0.0001,2]
[348959219,1736893846326,-23787.57893562,0.0001,2]
[348959221,1736893846337,-1209.95169028,0.0001,2]
[348959223,1736893846348,-181.44592618,0.0001,2]
[348959225,1736893846359,-9511.56189094,0.00010073,4]
[348959227,1736893846369,-771.05,0.00010137,2]
[348959229,1736893846378,-250.0,0.00010226,2]
[348959232,1736893846390,-500.0,0.00010273,2]
[348959234,1736893846402,-626.53,0.00010273,2]
[348959236,1736893846414,-500.0,0.00010273,2]
[348959238,1736893846425,-184.71,0.00010375,2]
[348959240,1736893846436,-171.320128,0.00010469,2]
[348959243,1736893846447,-171.320128,0.00010469,2]
[348959245,1736893846459,-1000.0,0.00010521,2]
[348959247,1736893846471,-14511.29,0.00010538,2]
[348959249,1736893846482,-1000.0,0.00010538,2]
[348959252,1736893846494,-250.0,0.00010543,2]
[348959254,1736893846506,-500.0,0.00010544,2]
[348959256,1736893846518,-500.0,0.00010544,2]
[348959258,1736893846529,-500.0,0.00010544,2]
[348959260,1736893846541,-500.0,0.00010544,2]
[348959263,1736893846554,-500.0,0.00010544,2]
[348959265,1736893846564,-639.75,0.00010544,2]
[348959267,1736893846576,-797.7,0.00010544,2]
[348959269,1736893846587,-723.76,0.00010544,2]
[348959271,1736893846599,-1568.33,0.00010544,2]
[348959274,1736893846612,-3060.27,0.00010544,2]
[348959276,1736893846623,-541.57,0.00010544,2]
[348959278,1736893846633,-500.0,0.00010544,2]
[348959280,1736893846644,-855.47,0.00010544,2]
[348959282,1736893846657,-500.0,0.00010544,2]
[348959285,1736893846669,-688.0,0.00010544,2]
[348959287,1736893846682,-937.65,0.00010544,2]
[348959289,1736893846695,-500.0,0.00010544,2]
[348959291,1736893846707,-1000.0,0.00010544,2]
[348959294,1736893846718,-668.71,0.00010544,2]
[348959296,1736893846729,-500.0,0.00010544,2]
[348959298,1736893846738,-500.0,0.00010547,2]
[348959300,1736893846748,-626.53,0.00010547,2]
[348959302,1736893846759,-500.0,0.00010547,2]
[348959304,1736893846770,-162.14,0.00010611,2]
[348959306,1736893846781,-298.08,0.00010811,2]
[348959308,1736893846792,-500.0,0.00010818,2]
[348959311,1736893846806,-500.0,0.00010818,2]
[348959313,1736893846820,-500.0,0.00010818,2]
[348959315,1736893846829,-500.0,0.00010818,2]
[348959317,1736893846839,-500.0,0.00010818,2]
[348959319,1736893846849,-639.75,0.00010818,2]
[348959321,1736893846859,-797.7,0.00010818,2]
[348959323,1736893846869,-723.76,0.00010818,2]
[348959325,1736893846880,-1568.33,0.00010818,2]
[348959327,1736893846890,-3060.27,0.00010818,2]
[348959330,1736893846902,-541.57,0.00010818,2]
[348959332,1736893846913,-500.0,0.00010818,2]
[348959334,1736893846923,-855.47,0.00010818,2]
[348959336,1736893846933,-500.0,0.00010818,2]
[348959338,1736893846943,-688.0,0.00010818,2]
[348959340,1736893846955,-937.65,0.00010818,2]
[348959341,1736893846966,-500.0,0.00010818,2]
[348959342,1736893846977,-1000.0,0.00010818,2]
[348959343,1736893846988,-668.71,0.00010818,2]
[348959344,1736893846998,-500.0,0.00010818,2]
[348959345,1736893847008,-500.0,0.00010821,2]
[348959346,1736893847019,-626.53,0.00010821,2]
[348959347,1736893847031,-500.0,0.00010821,2]
[348959348,1736893847042,-1474.68553243,0.000109,2]
[348959349,1736893847053,-171.320128,0.00010992,2]
[348959350,1736893847065,-171.320128,0.00010992,2]
[348959352,1736893847079,-255.0,0.00010999,2]
[348959354,1736893847090,-666.0,0.00010999,2]
[348959356,1736893847102,-261588.15852761,0.00011,2]
[348960312,1736894554140,5050.0,0.00018,34]
[348960313,1736894629648,-2847.17,9.802e-05,2]
[348960314,1736894629672,-250.0,9.886e-05,2]
[348960315,1736894629699,-184.71,9.888e-05,2]
[348960316,1736894629723,-1384.3592,9.973e-05,2]
[348960317,1736894629746,-2159.76588704,9.986e-05,2]
[348960318,1736894629770,-300.0,9.997e-05,2]
[348960319,1736894629793,-150.0,9.998e-05,2]
[348960320,1736894629816,-2159.76588704,9.998e-05,2]
[348960321,1736894629839,-238.81,9.999e-05,2]
[348960322,1736894629861,-500.0,9.999e-05,2]
[348960323,1736894629884,-500.0,9.999e-05,2]
[348960324,1736894629907,-601.63,9.999e-05,2]
[348960325,1736894629933,-500.0,9.999e-05,2]
[348960326,1736894629960,-500.0,9.999e-05,2]
[348960327,1736894629984,-500.0,9.999e-05,2]
[348960328,1736894630009,-500.0,9.999e-05,2]
[348960329,1736894630034,-567.0,9.999e-05,2]
[348960330,1736894630058,-500.0,9.999e-05,2]
[348960331,1736894630084,-500.0,9.999e-05,2]
[348960332,1736894630108,-500.0,9.999e-05,2]
[348960333,1736894630131,-500.0,9.999e-05,2]
[348960334,1736894630154,-500.0,9.999e-05,2]
[348960335,1736894630178,-500.0,9.999e-05,2]
[348960336,1736894630200,-500.0,9.999e-05,2]
[348960337,1736894630223,-500.0,9.999e-05,2]
[348960338,1736894630247,-500.0,9.999e-05,2]
[348960339,1736894630270,-500.0,9.999e-05,2]
[348960340,1736894630293,-500.0,9.999e-05,2]
[348960341,1736894630316,-500.0,9.999e-05,2]
[348960342,1736894630340,-500.0,9.999e-05,2]
[348960343,1736894630363,-502.96,9.999e-05,2]
[348960344,1736894630386,-500.0,9.999e-05,2]
[348960345,1736894630408,-500.0,9.999e-05,2]
[348960346,1736894630432,-500.0,9.999e-05,2]
[348960347,1736894630456,-500.0,9.999e-05,2]
[348960348,1736894630479,-522.46,9.999e-05,2]
[348960349,1736894630503,-500.0,9.999e-05,2]
[348960350,1736894630531,-500.0,9.999e-05,2]
[348960351,1736894630556,-500.0,9.999e-05,2]
[348960352,1736894630580,-500.0,9.999e-05,2]
[348960353,1736894630604,-500.0,9.999e-05,2]
[348960354,1736894630627,-500.0,9.999e-05,2]
[348960355,1736894630656,-500.0,9.999e-05,2]
[348960356,1736894630682,-540.84,9.999e-05,2]
[348960357,1736894630705,-500.0,9.999e-05,2]
[348960358,1736894630728,-500.0,9.999e-05,2]
[348960359,1736894630751,-500.0,9.999e-05,2]
[348960360,1736894630775,-500.0,9.999e-05,2]
[348960361,1736894630799,-500.0,9.999e-05,2]
[348960362,1736894630822,-500.0,9.999e-05,2]
[348960363,1736894630845,-500.0,9.999e-05,2]
[348960364,1736894630868,-505.94,9.999e-05,2]
[348960365,1736894630891,-500.0,9.999e-05,2]
[348960366,1736894630914,-500.0,9.999e-05,2]
[348960367,1736894630938,-500.0,9.999e-05,2]
[348960368,1736894630963,-427.8,9.999e-05,2]
[348960369,1736894630986,-500.0,9.999e-05,2]
[348960370,1736894631009,-591.45312377,9.999e-05,2]
[348960371,1736894631033,-500.0,9.999e-05,2]
[348960372,1736894631057,-500.0,9.999e-05,2]
[348960373,1736894631082,-500.0,9.999e-05,2]
[348960374,1736894631118,-500.0,9.999e-05,2]
[348960375,1736894631146,-500.0,9.999e-05,2]
[348960376,1736894631173,-500.0,9.999e-05,2]
[348960377,1736894631200,-500.0,9.999e-05,2]
[348960378,1736894631226,-500.0,9.999e-05,2]
[348960379,1736894631253,-500.0,9.999e-05,2]
[348960380,1736894631279,-278.32916273,9.999e-05,2]
[348960381,1736894631303,-500.0,9.999e-05,2]
[348960382,1736894631328,-500.0,9.999e-05,2]
[348960383,1736894631352,-500.0,9.999e-05,2]
[348960384,1736894631376,-500.0,9.999e-05,2]
[348960385,1736894631400,-500.0,9.999e-05,2]
[348960386,1736894631425,-500.0,9.999e-05,2]
[348960387,1736894631449,-500.0,9.999e-05,2]
[348960388,1736894631776,-500.0,9.999e-05,2]
[348960389,1736894631804,-500.0,9.999e-05,2]
[348960390,1736894631827,-500.0,9.999e-05,2]
[348960391,1736894631849,-500.0,9.999e-05,2]
[348960392,1736894631872,-500.0,9.999e-05,2]
[348960393,1736894631896,-500.0,9.999e-05,2]
[348960394,1736894631919,-500.0,9.999e-05,2]
[348960395,1736894631943,-500.0,9.999e-05,2]
[348960396,1736894631966,-500.0,9.999e-05,2]
[348960397,1736894631990,-500.0,9.999e-05,2]
[348960398,1736894632016,-500.0,9.999e-05,2]
[348960399,1736894632039,-500.0,9.999e-05,2]
[348960400,1736894632062,-639.22,9.999e-05,2]
[348960401,1736894632085,-500.0,9.999e-05,2]
[348960402,1736894632109,-512.3693306,9.999e-05,2]
[348960403,1736894632138,-500.0,9.999e-05,2]
[348960404,1736894632163,-500.0,9.999e-05,2]
[348960405,1736894632187,-500.0,9.999e-05,2]
[348960406,1736894632209,-500.0,9.999e-05,2]
[348960407,1736894632231,-596.54,9.999e-05,2]
[348960408,1736894632255,-500.0,9.999e-05,2]
[348960409,1736894632280,-500.0,9.999e-05,2]
[348960410,1736894632303,-500.0,9.999e-05,2]
[348960411,1736894632326,-500.0,9.999e-05,2]
[348960412,1736894632349,-500.0,9.999e-05,2]
[348960413,1736894632372,-500.0,9.999e-05,2]
[348960414,1736894632396,-500.0,9.999e-05,2]
[348960415,1736894632419,-500.0,9.999e-05,2]
[348960416,1736894632442,-500.0,9.999e-05,2]
[348960417,1736894632466,-500.0,9.999e-05,2]
[348960418,1736894632490,-500.0,9.999e-05,2]
[348960419,1736894632513,-500.0,9.999e-05,2]
[348960420,1736894632537,-500.0,9.999e-05,2]
[348960421,1736894632560,-500.0,9.999e-05,2]
[348960422,1736894632583,-500.0,9.999e-05,2]
[348960423,1736894632608,-500.0,9.999e-05,2]
[348960424,1736894632636,-500.0,9.999e-05,2]
[348960425,1736894632660,-500.0,9.999e-05,2]